[Event "37th ECCC 2022"]
[Site "Mayrhofen"]
[Date "2022.10.03"]
[Round "1.49"]
[White "Roberson, Peter T"]
[Black "Mamedov, Rauf"]
[Result "0-1"]
[ECO "B12"]
[WhiteElo "2421"]
[BlackElo "2646"]
[Annotator "TA"]
[PlyCount "82"]
[EventDate "2022.10.03"]
[EventType "team-tourn"]
[EventCountry "AUT"]
[SourceTitle "playchess.com"]
[Source "ChessBase"]
[SourceQuality "1"]
[TimeControl "40/5400+30:1800+30"]

{[%evp 10,82,15,17,24,21,35,21,40,27,28,35,30,37,48,58,52,-9,-16,4,45,68,93,58,61,58,57,48,53,-81,-70,-93,-68,-95,-43,-39,-22,-22,-22,-17,-33,-29,-17,-28,-24,-91,-53,-57,-62,-103,-93,-150,-116,-133,-122,-133,-136,-171,-117,-205,-180,-707,-388,-563,-509,-574,-534,-668,-546,-875,-743,-750,-745,-671,-606]} 1. e4 {[%emt 0:00:05]} c6 {[%emt 0:00:06]} 2. d4 {[%emt 0:01:35]} d5 {[%emt 0:00:28]} 3. e5 {[%emt 0:00:11]} Bf5 {[%emt 0:00:03]} 4. Nd2 {[%emt 0:01:03]} e6 {[%emt 0:00:13]} 5. Nb3 {[%emt 0:00:07]} Nd7 {[%emt 0:01:33]} 6. Nf3 {[%emt 0:00:39]} Ne7 {[%emt 0:01:02] B12: Caro-Kann: Advance Variation.} 7. Be2 {[%emt 0:00:46]} h6 {[%emt 0:00:26]} 8. O-O {[%emt 0:00:25]} Qc7 {[%emt 0:02:57] The position is equal.} 9. a4 {[%emt 0:01:57]} g5 {[%emt 0:03:41]} 10. Bd2 {[%emt 0:08:15]} a5 {[%emt 0:22:16]} 11. c3 {[%emt 0:01:41] 11.Rc1 is a critical line.} Bg7 {[%emt 0:05:45]} 12. Ne1 {[%emt 0:01:23]} c5 {[%emt 0:06:52] [#]} 13. f4 $146 {[%emt 0:05:46]} (13. Bb5 $14) ({Predecessor:} 13. Bb5 Nc6 14. f4 c4 15. Nc1 O-O-O 16. b3 Nb6 17. fxg5 hxg5 18. Bxg5 f6 19. Bf4 fxe5 {½-½ (73) Najer,E (2667)-Lobanov,S (2515) Sochi 2018}) 13... c4 $11 {[%emt 0:02:16]} 14. Nc1 {[%emt 0:00:54]} Qb6 {[%emt 0:02:39]} 15. b3 {[%emt 0:09:26]} gxf4 {[%emt 0:05:01]} 16. bxc4 {[%emt 0:08:43]} dxc4 {[%emt 0:00:47]} 17. Bxc4 {[%emt 0:10:39]} Nxe5 {[%emt 0:04:10]} 18. Bb5+ {[%emt 0:00:35]} N5c6 {[%emt 0:00:11][%cal Og7d4]} 19. Bxf4 {[%emt 0:08:05]} (19. Kh1 $14 {keeps the upper hand.}) 19... Nd5 $17 {[%emt 0:06:20]} 20. Bxc6+ {[%emt 0:29:03]} bxc6 {[%emt 0:01:57]} 21. Qd2 {[%emt 0:04:34]} Nxc3 {[%emt 0:04:49]} 22. Nf3 $15 {[%emt 0:00:13]} Ne4 {[%emt 0:06:53][%cal Bc3e4,Be4f6,Bf6d5][%mdl 32]} 23. Qe3 {[%emt 0:00:02]} Rd8 {[%emt 0:01:10][%cal Rd8d4]} 24. Ne2 {[%emt 0:01:57]} Nf6 {[%emt 0:00:25]} 25. Qa3 {[%emt 0:03:13]} Bf8 {[%emt 0:05:19]} 26. Qc1 {[%emt 0:00:22]} Nd5 {[%emt 0:00:07]} 27. Be5 {[%emt 0:01:24]} (27. Kh1 $11 {keeps the balance.}) 27... f6 {[%emt 0:01:51]} 28. Bg3 {[%emt 0:00:02]} h5 $36 {[%emt 0:00:08][%mdl 2048] Black has good play.} 29. Ra2 {[%emt 0:01:15]} Bh6 {[%emt 0:01:42] This bishop pair is nice.} 30. Qa1 {[%emt 0:00:19]} ({White should try} 30. Nf4) 30... O-O $17 {[%emt 0:01:27] Black has more active pieces.} 31. Rb2 {[%emt 0:00:11]} Qa6 {[%emt 0:01:07]} 32. h3 {[%emt 0:00:54]} Rd7 {[%emt 0:01:02]} 33. Re1 {[%emt 0:00:32]} Rg7 {[%emt 0:00:21]} ({Black should play} 33... Qd3 $19 {[%cal Of5h3] ...Bxh3! is the strong threat.} 34. Qd1 Qxd1 35. Rxd1 Rg7) 34. Kh2 {[%emt 0:00:32]} (34. Qa3 $17 {keeps fighting.}) 34... Kh7 {[%emt 0:00:51] [#] Threatens to win with ...Rfg8.} 35. Neg1 $2 {[%emt 0:00:38]} (35. Nh4 Qd3 36. Nxf5 exf5 37. Qb1) 35... Rfg8 {[%emt 0:00:31]} 36. Bd6 {[%emt 0:00:10]} (36. Bh4 {was the only chance.}) 36... Qd3 {[%emt 0:00:59] aiming for ...Ne3. Black is clearly winning.} 37. Nh4 {[%emt 0:00:47]} Ne3 {[%emt 0:03:01] Strongly threatening ...Be4.} 38. Kh1 {[%emt 0:00:33]} Be4 {[%emt 0:01:03][%cal Re3g2]} 39. Ree2 {[%emt 0:00:29]} Nc4 {[%emt 0:01:11]} 40. Bh2 {[%emt 0:00:33]} Nxb2 {[%emt 0:00:33]} 41. Qxb2 {[%emt 0:30:07]} Bd5 {[%emt 0:30:26] Weighted Error Value: White=0.53/Black=0.31} 0-1

[Event "37th ECCC 2022"]
[Site "Mayrhofen"]
[Date "2022.10.03"]
[Round "1.50"]
[White "Asadli, Vugar"]
[Black "Makkar, Rajat"]
[Result "1-0"]
[ECO "B62"]
[WhiteElo "2575"]
[BlackElo "2399"]
[Annotator "TA"]
[PlyCount "81"]
[EventDate "2022.10.03"]
[EventType "team-tourn"]
[EventCountry "AUT"]
[SourceTitle "playchess.com"]
[Source "ChessBase"]
[SourceQuality "1"]
[TimeControl "40/5400+30:1800+30"]

{[%evp 13,81,37,22,0,10,8,35,34,25,23,29,32,35,0,49,56,39,-27,-29,-29,-29,-70,-53,-252,-249,-239,-226,-243,-232,-240,-245,-280,-281,-282,-275,-264,-263,-351,-309,-330,-314,-376,-357,-403,-127,-116,-102,-155,-143,-195,-210,-210,-195,-202,-202,-202,-73,-70,0,-26,0,0,0,-48,-18,-46,0,0,4718,4710]} 1. e4 {[%emt 0:00:03]} c5 {[%emt 0:00:22]} 2. Nc3 {[%emt 0:00:42]} Nc6 {[%emt 0:00:28]} 3. Nf3 {[%emt 0:00:52]} d6 {[%emt 0:00:54]} 4. d4 {[%emt 0:04:42]} cxd4 {[%emt 0:00:43]} 5. Nxd4 {[%emt 0:00:06]} Nf6 {[%emt 0:00:18]} 6. Bg5 {[%emt 0:00:09]} e6 {[%emt 0:00:30]} 7. Bb5 {[%emt 0:00:15]} Bd7 {[%emt 0:00:38]} 8. Qd3 {[%emt 0:00:18] B62: Sicilian: Richter-Rauzer: 6...e6: Unusual White 7th moves.} Be7 {[%emt 0:00:33] 8...h6 might become the main line.} 9. O-O-O {[%emt 0:00:15]} Nxd4 {[%emt 0:00:50]} (9... O-O {seems wilder.} 10. Bxc6 bxc6 11. Nb3 a5) 10. Bxd7+ {[%emt 0:06:15] White is slightly better.} Nxd7 {[%emt 0:00:14]} 11. Bxe7 {[%emt 0:01:11]} Kxe7 {[%emt 0:00:06]} (11... Qxe7 12. Qxd4 Qg5+ 13. Kb1 $16) 12. Qxd4 {[%emt 0:00:05]} Qb6 {[%emt 0:00:07] [#]} 13. Qxg7 $146 {[%emt 0:17:18] Strongly threatening Qg5+.} ({Predecessor:} 13. Rd2 Qxd4 14. Rxd4 Nf6 15. Rhd1 Rhd8 16. f3 a6 17. a4 Rac8 18. Rb4 Rc7 19. Rb6 {0-1 (55) Kochavi,O (2356)-Blomqvist,E (2521) Teplice 2022}) 13... Rhg8 {[%emt 0:00:28]} (13... Rag8 $11 14. Qh6 Rxg2) 14. Qh6 $14 {[%emt 0:01:22]} Qxf2 {[%emt 0:08:16]} 15. e5 {[%emt 0:12:43]} (15. g3 $14 Qf6 16. Qh3 (16. Qd2 Qg5 $11)) 15... Nxe5 $11 {[%emt 0:13:15][%cal Bd7e5,Be5g4,Bg4f2][%mdl 32]} (15... Rxg2 $2 16. exd6+ Ke8 17. Qxh7 $18 (17. Rd2 Qxd2+ 18. Qxd2 Rxd2 $17)) 16. g3 {[%emt 0:06:30]} Ng4 {[%emt 0:08:13]} 17. Qh5 {[%emt 0:02:12] And now Rhf1 would win.} Qc5 $1 {[%emt 0:07:18]} 18. Qh3 {[%emt 0:10:23]} (18. Qxh7 $15 Qe3+ 19. Rd2 (19. Kb1 Rh8 $17)) 18... Nf2 $1 $19 {[%emt 0:05:15][%csl LRd1,LRh1,LRh3]} 19. Qg2 {[%emt 0:00:09]} Rac8 {[%emt 0:05:28]} 20. Qxb7+ {[%emt 0:05:56]} Rc7 {[%emt 0:01:35]} 21. Qf3 {[%emt 0:00:01]} Nxh1 {[%emt 0:01:56]} 22. Rxh1 {[%emt 0:00:03]} Rg5 {[%emt 0:02:37]} 23. Rd1 {[%emt 0:00:59]} Re5 {[%emt 0:03:49]} 24. Kb1 {[%emt 0:00:36]} Qe3 {[%emt 0:03:31]} 25. Qa8 {[%emt 0:01:27]} Qf2 {[%emt 0:03:21]} 26. a4 {[%emt 0:02:11]} Qxh2 {[%emt 0:08:00]} 27. Qb8 {[%emt 0:02:06]} Rd7 {[%emt 0:05:31]} 28. Nb5 {[%emt 0:00:11]} Rd5 $2 {[%emt 0:00:42]} (28... Rc5 $19 29. Rc1 Qd2) 29. Rc1 $17 {[%emt 0:01:39] [#]} Rxb5 {[%emt 0:04:07]} ({Much weaker is} 29... Qxg3 $6 30. Nc7 Rxc7 31. Qxc7+ Kf6 32. Qxa7 $11) 30. axb5 {[%emt 0:00:05]} (30. Qxb5 $142 Qxg3 31. Qh5) 30... Qxg3 {[%emt 0:00:24][%mdl 4096] Endgame KQR-KQR} 31. c4 {[%emt 0:00:05]} (31. Qh8 $17) 31... h5 $19 {[%emt 0:01:00][%cal Bh7h5,Bh5h4][%mdl 32]} 32. Ka2 {[%emt 0:00:07]} h4 {[%emt 0:01:07]} 33. Rc3 {[%emt 0:00:05]} Qf4 {[%emt 0:02:41][%cal Oh4h3]} 34. Qc8 {[%emt 0:01:45]} Qd4 {[%emt 0:04:08]} (34... Qg4 $19 {and Black stays clearly on top. Threatens to win with ...h3.} 35. Ka3 e5) 35. Rf3 $17 {[%emt 0:03:10]} f5 {[%emt 0:03:29]} (35... e5 $15 36. b3 Qd2+ 37. Ka3 Qc1+ 38. Ka2 Qc2+ 39. Ka3 Qd1) 36. Rc3 {[%emt 0:00:34]} Rd8 {[%emt 0:00:29]} 37. Qc7+ {[%emt 0:00:14]} Rd7 {[%emt 0:00:05]} (37... Ke8 $11 {was preferrable.}) 38. Qc8 $15 {[%emt 0:00:22]} Qg7 {[%emt 0:02:18]} 39. Rh3 {[%emt 0:01:05]} Qg4 {[%emt 0:01:11]} (39... Qf6 $15 {might be stronger.}) 40. Ra3 $1 $11 {[%emt 0:01:43]} Qg7 $2 {[%emt 0:01:48][%mdl 8192] [#]} (40... e5 $11) 41. Qxd7+ $3 {[%emt 0:30:10][%mdl 576] Remove Defender. White used his chance.  Weighted Error Value: White=0.27 (precise) /Black=0.23 (precise)} 1-0

[Event "37th ECCC 2022"]
[Site "Mayrhofen"]
[Date "2022.10.03"]
[Round "1.51"]
[White "Moreby, James"]
[Black "Ahmadzada, Ahmad"]
[Result "1/2-1/2"]
[ECO "A16"]
[WhiteElo "2346"]
[BlackElo "2488"]
[Annotator "TA"]
[PlyCount "62"]
[EventDate "2022.10.03"]
[EventType "team-tourn"]
[EventCountry "AUT"]
[SourceTitle "playchess.com"]
[Source "ChessBase"]
[SourceQuality "1"]
[TimeControl "40/5400+30:1800+30"]

{[%evp 20,62,59,47,60,24,25,23,12,29,28,20,25,20,85,75,70,0,8,0,63,56,55,58,44,43,43,44,42,38,59,61,40,16,16,16,16,13,13,0,0,0,14,0,0]} 1. c4 {[%emt 0:00:06]} Nf6 {[%emt 0:00:15]} 2. Nc3 {[%emt 0:00:30]} g6 {[%emt 0:01:22]} 3. e4 {[%emt 0:00:13]} Bg7 {[%emt 0:03:33]} 4. d4 {[%emt 0:01:01]} O-O {[%emt 0:02:13]} 5. Be2 {[%emt 0:00:17]} c5 {[%emt 0:01:17]} 6. Nf3 {[%emt 0:00:45]} cxd4 {[%emt 0:00:31]} 7. Nxd4 {[%emt 0:00:07]} d6 {[%emt 0:00:26]} 8. Be3 {[%emt 0:00:16]} Nc6 {[%emt 0:00:34]} 9. O-O {[%emt 0:01:14]} Bd7 {[%emt 0:00:12]} 10. f3 {[%emt 0:00:00]} Nxd4 {[%emt 0:02:36]} 11. Bxd4 {[%emt 0:00:04]} (11. Qxd4 Ng4 $1 12. Qd3 Nxe3 13. Qxe3 Qb6 14. Qxb6 axb6 $15) 11... a5 {B38: Sicilian: Maroczy Bind with 5...Bg7 and 7...0-0.} 12. c5 {[%emt 0:00:03]} dxc5 {[%emt 0:15:50]} 13. Bxc5 {[%emt 0:00:20]} Rc8 {White has an edge.} 14. Be3 {[%emt 0:02:16]} Be6 {[%emt 0:09:19]} 15. Qa4 {[%emt 0:00:54]} Nd7 {[%emt 0:01:31]} 16. Rfd1 Qc7 {[%emt 0:06:46] [#]} (16... Bxc3 $11 17. bxc3 Qc7) 17. Rac1 $1 $16 {[%emt 0:03:12] Threatens to win with Nd5.} Nc5 {[%emt 0:07:43]} 18. Qa3 {[%emt 0:03:00]} ({White should play} 18. Qb5 $14 Bxc3 19. Rxc3) 18... b6 $1 $11 {[%emt 0:01:31]} 19. Na4 {[%emt 0:09:24][%cal Ra4c5] [#]} Qb7 $146 {[%emt 0:02:36]} (19... Qa7 $11) ({Predecessor:} 19... Be5 20. Nxc5 bxc5 21. Rxc5 Qb8 22. Rb5 Bxh2+ 23. Kh1 Qc7 24. Rc5 Qb8 25. Rxc8 Rxc8 26. Qxe7 {½-½ (35) Bobras,P (2524)-Hausrath,D (2481) Germany 2017}) 20. Nxc5 $14 {[%emt 0:17:13]} bxc5 21. b3 {[%emt 0:11:04]} (21. Bxc5 $2 Bxb2 22. Qxa5 Bxc1 23. Rxc1 Ra8 $17) ({Much worse is} 21. Qxa5 Qxb2 22. Kf1 c4 $17) 21... Bd4 {[%emt 0:12:29]} 22. Bxd4 {[%emt 0:01:04]} cxd4 {[%emt 0:00:05]} 23. Rxc8 {[%emt 0:00:29]} ({Wrong is} 23. Rxd4 $2 Qa7 24. Rcd1 Rfd8 $19) 23... Rxc8 {[%emt 0:00:17]} 24. Qxa5 {[%emt 0:00:20]} Ra8 $1 25. Qd2 {[%emt 0:05:22]} Qa7 {[%emt 0:01:26] White must now prevent ...d3+.} 26. Qxd4 {[%emt 0:00:42]} Qxa2 {[%emt 0:00:34] The position is equal.} 27. Bc4 {[%emt 0:01:02]} Bxc4 {[%emt 0:00:41]} 28. bxc4 {[%emt 0:02:13]} Qc2 {Prevents Rc1. And now ...Ra2 would win.} 29. Rd2 {[%emt 0:00:06]} Qc1+ {[%emt 0:02:50]} 30. Rd1 Qc2 {Strongly threatening ...Ra2.} 31. Rd2 {[%emt 0:00:35]} Qc1+ {[%emt 0:00:08] Weighted Error Value: White=0.12 (very precise) /Black=0.09 (flawless)} 1/2-1/2

[Event "37th ECCC 2022"]
[Site "Mayrhofen"]
[Date "2022.10.03"]
[Round "1.52"]
[White "Sadikhov, Ulvi"]
[Black "Bremner, Adam"]
[Result "1-0"]
[ECO "A05"]
[WhiteElo "2473"]
[BlackElo "2178"]
[Annotator "RC"]
[PlyCount "83"]
[EventDate "2022.10.03"]
[EventType "team-tourn"]
[EventCountry "AUT"]
[SourceTitle "playchess.com"]
[Source "ChessBase"]
[SourceQuality "1"]
[TimeControl "40/5400+30:1800+30"]

1. Nf3 {[%emt 0:00:04]} Nf6 {[%emt 0:01:02]} 2. g3 {[%emt 0:00:12]} g6 {[%emt 0:00:11]} 3. Bg2 {[%emt 0:00:20]} Bg7 {[%emt 0:00:15]} 4. O-O {[%emt 0:00:47]} O-O {[%emt 0:00:04]} 5. d3 {[%emt 0:00:19]} c5 {[%emt 0:01:02]} 6. c3 {[%emt 0:00:51]} Nc6 {[%emt 0:01:17]} 7. e4 {[%emt 0:01:02]} d6 {[%emt 0:00:33]} 8. Re1 {[%emt 0:00:12]} Rb8 {[%emt 0:02:20]} 9. Nbd2 {[%emt 0:06:17]} b5 {[%emt 0:03:01]} 10. d4 {[%emt 0:05:24]} cxd4 {[%emt 0:13:54]} 11. cxd4 {[%emt 0:02:44]} e5 {[%emt 0:00:41]} 12. d5 {[%emt 0:05:47]} Ne7 {[%emt 0:01:21]} 13. b4 {[%emt 0:04:55]} a5 {[%emt 0:08:06]} 14. Nb3 {[%emt 0:10:23]} a4 {[%emt 0:04:23]} 15. Na5 {[%emt 0:02:29]} Bd7 {[%emt 0:00:43]} 16. Bd2 {[%emt 0:16:21]} Rc8 {[%emt 0:03:52]} 17. h3 {[%emt 0:04:02]} Qb6 {[%emt 0:04:57]} 18. Be3 {[%emt 0:00:52]} Qb8 {[%emt 0:00:11]} 19. Nd2 {[%emt 0:00:52]} Kh8 {[%emt 0:02:32]} 20. Rc1 {[%emt 0:06:07]} Rxc1 {[%emt 0:00:59]} 21. Qxc1 {[%emt 0:00:04]} Rc8 {[%emt 0:00:13]} 22. Qa3 {[%emt 0:08:30]} Ne8 {[%emt 0:07:53]} 23. Qd3 {[%emt 0:06:57]} f5 {[%emt 0:06:25]} 24. f3 {[%emt 0:00:23]} Qc7 {[%emt 0:04:08]} 25. Bf1 {[%emt 0:01:26]} Qc2 {[%emt 0:01:54]} 26. Qxc2 {[%emt 0:03:21]} Rxc2 {[%emt 0:00:03]} 27. a3 {[%emt 0:02:07]} Nc8 {[%emt 0:06:04]} 28. Nb1 {[%emt 0:00:50]} f4 {[%emt 0:10:58]} 29. Rc1 {[%emt 0:04:24]} Rxc1 {[%emt 0:00:34]} 30. Bxc1 {[%emt 0:00:03]} g5 {[%emt 0:01:22]} 31. Nc3 {[%emt 0:00:14]} Nc7 {[%emt 0:00:14]} 32. Nc6 {[%emt 0:02:12]} Bxc6 {[%emt 0:00:55]} 33. dxc6 {[%emt 0:00:03]} Na7 {[%emt 0:00:08]} 34. Nd5 {[%emt 0:01:02]} Nxd5 {[%emt 0:01:29]} 35. exd5 {[%emt 0:00:03]} e4 {[%emt 0:00:31]} 36. fxe4 {[%emt 0:00:38]} Bd4+ {[%emt 0:00:28]} 37. Kg2 {[%emt 0:00:09]} fxg3 {[%emt 0:00:28]} 38. Bxg5 {[%emt 0:00:33]} Bb2 {[%emt 0:01:01]} 39. c7 {[%emt 0:00:29]} Bxa3 {[%emt 0:00:27]} 40. Bxb5 {[%emt 0:00:11]} Bxb4 {[%emt 0:00:17]} 41. Bxa4 {[%emt 0:30:23]} Ba5 {[%emt 0:30:18]} 42. Bd8 {[%emt 0:00:21]} 1-0

[Event "37th ECCC 2022"]
[Site "Mayrhofen"]
[Date "2022.10.03"]
[Round "1.53"]
[White "Murphy, Hugh W"]
[Black "Babazada, Khazar"]
[Result "0-1"]
[ECO "A46"]
[WhiteElo "2141"]
[BlackElo "2463"]
[Annotator "TA"]
[PlyCount "38"]
[EventDate "2022.10.03"]
[EventType "team-tourn"]
[EventCountry "AUT"]
[SourceTitle "playchess.com"]
[Source "ChessBase"]
[SourceQuality "1"]
[TimeControl "40/5400+30:1800+30"]

{[%evp 9,38,0,-4,-13,-13,-13,-19,-15,6,3,16,0,0,-50,-60,-44,-51,-286,-302,-305,-297,-313,-299,-348,-386,-528,-522,-520,-518,-510,-471]} 1. d4 {[%emt 0:00:08]} Nf6 {[%emt 0:00:38]} 2. Nf3 {[%emt 0:00:07]} d6 {[%emt 0:00:06]} 3. Bg5 {[%emt 0:03:14]} Nbd7 {[%emt 0:00:08]} 4. Nbd2 {[%emt 0:02:44]} e5 {[%emt 0:00:10]} 5. dxe5 {[%emt 0:06:24]} dxe5 {[%emt 0:00:09]} 6. e4 {[%emt 0:00:43] A46: 1 d4 Nf6 2 Nf3 e6: Torre, London and Colle Systems.} Be7 {[%emt 0:00:19]} 7. Bc4 {[%emt 0:02:03]} O-O {[%emt 0:01:00]} 8. O-O {[%emt 0:00:53] The position is equal.} c6 {[%emt 0:00:12]} 9. a4 {[%emt 0:02:16]} Qc7 {[%emt 0:00:56] [#]} 10. Nh4 $146 {[%emt 0:06:54]} ({Predecessor:} 10. h3 Nc5 11. Re1 Be6 12. Qe2 Rfe8 13. Bh4 Bxc4 14. Qxc4 Ne6 15. Qc3 Nd7 16. Bg3 {½-½ (61) Medancic,R (2225)-Rocchetti,M (1814) Arco 2017}) 10... Nc5 {[%emt 0:01:55]} 11. Qf3 {[%emt 0:18:40] [#]} (11. Re1 $11) 11... Nfxe4 $1 {[%emt 0:12:26]} 12. Nxe4 {[%emt 0:02:58]} Nxe4 {[%emt 0:02:03][%cal Bc5e4,Be4d6,Bd6f5][%mdl 32]} 13. Bh6 {[%emt 0:18:01] [#] White does not recover from this.} (13. Bxe7 $15 Nd2 14. Qe2 Qxe7 15. Qxd2 Qxh4 16. Bb3) 13... Nd6 $1 $19 {[%emt 0:07:27]} ({Inferior is} 13... gxh6 14. Qxe4 Kh8 15. Nf5 $11 (15. Bd3 $2 f5 $19)) 14. Qg3 {[%emt 0:03:04][%csl Gh6][%cal Rg3g7]} Bf6 {[%emt 0:00:09]} 15. Bd3 {[%emt 0:01:11]} Qe7 {[%emt 0:00:50] White must now prevent ...Kh8.} 16. Nf3 {[%emt 0:01:15]} e4 {[%emt 0:00:35][%cal Be5e4,Be4d3][%mdl 32]} 17. Bd2 {[%emt 0:05:33]} Nf5 {[%emt 0:00:51] Black is clearly winning.} 18. Qf4 {[%emt 0:00:16]} exd3 {[%emt 0:00:04]} 19. Rfe1 {[%emt 0:00:41]} Be6 {[%emt 0:00:43] Weighted Error Value: White=0.45/Black=0.02 (flawless)} 0-1

[Event "37th ECCC 2022"]
[Site "Mayrhofen"]
[Date "2022.10.03"]
[Round "1.54"]
[White "Allahverdiyev, Anar"]
[Black "Varnam, Liam D"]
[Result "1-0"]
[ECO "A28"]
[WhiteElo "2412"]
[BlackElo "2090"]
[Annotator "TA"]
[PlyCount "73"]
[EventDate "2022.10.03"]
[EventType "team-tourn"]
[EventCountry "AUT"]
[SourceTitle "playchess.com"]
[Source "ChessBase"]
[SourceQuality "1"]
[TimeControl "40/5400+30:1800+30"]

{[%evp 14,73,-20,-15,-15,-12,-13,-33,0,-9,31,31,68,48,77,71,70,69,91,76,124,132,169,170,166,156,155,150,164,72,117,93,220,209,401,384,367,367,340,317,311,256,264,235,282,222,545,576,568,560,833,829,786,762,1516,1383,1508,1394,29978,29978,5406,5397]} 1. c4 {[%emt 0:00:16]} e5 {[%emt 0:00:05]} 2. Nc3 {[%emt 0:00:10]} Nf6 {[%emt 0:00:11]} 3. Nf3 {[%emt 0:02:24]} Nc6 {[%emt 0:00:25]} 4. d3 {[%emt 0:00:03]} d5 {[%emt 0:07:32]} 5. cxd5 {[%emt 0:00:09]} Nxd5 {[%emt 0:00:06]} 6. e3 {[%emt 0:03:05]} Be7 {[%emt 0:02:04]} 7. Be2 {[%emt 0:00:02]} O-O {[%emt 0:00:49]} 8. O-O {[%emt 0:00:04]} Be6 {[%emt 0:04:16] A28: English Opening: Four Knights Variation.} 9. e4 {[%emt 0:00:14]} Nb6 {[%emt 0:00:46]} 10. a4 {[%emt 0:00:25]} a5 {[%emt 0:02:09] [#] Black is slightly better.} 11. Be3 $146 {[%emt 0:01:04]} ({Predecessor:} 11. Nb5 Bg4 12. Be3 Nd7 13. Rc1 Re8 14. Nd2 Bxe2 15. Qxe2 Nf8 16. Nf3 Ne6 17. Rc4 {0-1 (38) Del Rio de Angelis,S (2502)-Peric,S (2230) Linares 2005}) 11... f6 {[%emt 0:07:41]} 12. Nb5 {[%emt 0:03:29]} Bb4 {[%emt 0:08:56]} 13. Rc1 {[%emt 0:04:26]} Qe7 {[%emt 0:06:38]} 14. d4 {[%emt 0:04:09]} exd4 {[%emt 0:02:33]} 15. Nfxd4 {[%emt 0:01:45]} Nxd4 {[%emt 0:01:41]} 16. Nxd4 {[%emt 0:01:40][%cal Oc1c7] And now Rxc7! would win.} (16. Qxd4 $6 Rad8 17. Rxc7 Rxd4 $11) 16... Bf7 {[%emt 0:06:51]} (16... Rad8 $142 17. Qc2 Bc8) 17. Nf5 $16 {[%emt 0:04:30]} Qxe4 {[%emt 0:00:40]} 18. Bd3 $1 {[%emt 0:00:08]} (18. Rxc7 Rad8 19. Qb1 Qxb1 20. Rxb1 Nd5 21. Rxb7 Bg6 $11) 18... Qe8 {[%emt 0:20:23]} 19. Rxc7 {[%emt 0:03:41]} Nd5 {[%emt 0:02:12] [#]} 20. Qg4 $1 $36 {[%emt 0:10:52][%csl Gf5][%cal Rg4g7][%mdl 2048] White is really pushing.} g6 {[%emt 0:03:08] [#]} 21. Rxb7 {[%emt 0:04:47]} (21. Bd4 $1 $18 {has better winning chances.}) 21... Kh8 {[%emt 0:10:30]} 22. Bh6 {[%emt 0:06:20] Black must now prevent Bg7+. White has more active pieces.} Rg8 {[%emt 0:01:07] Inhibits Bg7+. Loses the game.} (22... Qc8 $16 23. Bxf8 (23. Bg7+ Kg8 $16) 23... Qxb7) 23. Nd4 $18 {[%emt 0:00:29] Hoping for Bb5.} Be7 $2 {[%emt 0:08:37]} (23... Bf8 {keeps fighting.}) 24. Bb5 {[%emt 0:01:45]} Qc8 {[%emt 0:01:28]} 25. Qxc8 {[%emt 0:00:04]} Raxc8 {[%emt 0:01:27]} 26. Nc6 {[%emt 0:00:03]} Bf8 {[%emt 0:00:37]} 27. Bxf8 {[%emt 0:01:31]} ({Don't play} 27. Nxa5 Be6 $18) 27... Rgxf8 {[%emt 0:00:04]} 28. Rd1 {[%emt 0:01:05][%cal Ob7f7] Strongly threatening Rxf7!} ({Much less strong is} 28. Nxa5 Nf4 29. Re1 Rc2 $18) 28... Bg8 {[%emt 0:00:59]} 29. h4 {[%emt 0:00:51]} Nb4 $2 {[%emt 0:00:31]} (29... Ra8 {is tougher.} 30. Rd4 f5) 30. Nxb4 {[%emt 0:00:12]} axb4 {[%emt 0:00:04]} 31. a5 {[%emt 0:00:06][%cal Ba4a5,Ba5a6,Ba6a7][%mdl 32]} Rfd8 {[%emt 0:00:55]} 32. Rxd8 {[%emt 0:00:41]} Rxd8 {[%emt 0:00:05]} 33. a6 {[%emt 0:00:07]} Bd5 {[%emt 0:00:54]} 34. Rd7 {[%emt 0:00:18]} Rxd7 {[%emt 0:00:03]} 35. Bxd7 {[%emt 0:00:08]} Bc4 {[%emt 0:00:28]} 36. a7 {[%emt 0:00:19]} Bd5 {[%emt 0:00:07]} 37. Bg4 {[%emt 0:00:01] Weighted Error Value: White=0.14 (very precise) /Black=0.73} 1-0